bitfinex-derivatives/quotes_SOLF0:USTF0_20250823
["timestamp","ask_amount","ask_price","bid_price","bid_amount"]
[1755965150410,122.04,202.59,202.5,2.76]
[1755965151612,122.04,202.59,202.57,4.938]
[1755965153614,2.58,202.6,202.58,4.9377]
[1755965153814,2.58,202.59,202.58,4.9377]
[1755965156114,122.04,202.61,202.58,4.9377]
[1755965156318,124.62,202.61,202.58,4.9377]
[1755965156909,122.04,202.61,202.58,4.9377]
[1755965157115,2.58,202.6,202.58,4.9377]
[1755965158216,122.04,202.61,202.59,4.9374]
[1755965158916,124.62,202.61,202.59,4.9374]
[1755965159217,122.04,202.61,202.59,4.9374]
[1755965159415,2.58,202.6,202.59,4.9374]
[1755965159613,124.48,202.6,202.59,4.9374]
[1755965160515,124.48,202.6,202.57,4.938]
[1755965160723,2.58,202.59,202.57,4.938]
[1755965161616,124.48,202.6,202.53,2.76]
[1755965161920,2.58,202.56,202.49,2.76]
[1755965162120,2.58,202.54,202.5,7.49835873]
[1755965162326,2.58,202.54,202.51,9.67785873]
[1755965162516,2.58,202.54,202.52,4.73835873]
[1755965162716,2.58,202.54,202.53,4.74015552]
[1755965163220,121.86,202.55,202.51,7.6995]
[1755965163424,121.86,202.55,202.52,4.74021593]
[1755965163717,124.45,202.55,202.51,7.6995]
[1755965163917,124.45,202.55,202.52,9.68141041]
[1755965164118,124.45,202.55,202.52,4.9392]
[1755965164323,124.45,202.55,202.53,4.7434586]
[1755965164520,2.59,202.59,202.5,24.6992]
[1755965164720,121.82,202.58,202.51,7.34344627]
[1755965164924,121.82,202.58,202.52,4.74344627]
[1755965165124,121.82,202.58,202.56,4.9384]
[1755965165318,124.41,202.58,202.56,4.9384]
[1755965166024,121.82,202.58,202.56,4.9384]
[1755965166325,124.41,202.58,202.56,4.9384]
[1755965167020,121.82,202.58,202.56,4.9384]
[1755965167222,124.41,202.58,202.56,4.9384]
[1755965167422,121.86,202.57,202.56,4.9384]
[1755965168724,124.45,202.57,202.56,4.9384]
[1755965168924,124.45,202.57,202.54,4.9388]
[1755965169525,124.45,202.57,202.55,4.9385]
[1755965171123,2.59,202.57,202.55,4.9385]
[1755965171325,124.35,202.57,202.55,4.9385]
[1755965177026,2.59,202.56,202.55,4.9385]
[1755965177221,2.59,202.56,202.55,9.68848639]
[1755965178133,2.59,202.56,202.55,4.9385]
[1755965180736,121.76,202.57,202.41,28.83585693]
[1755965181037,2.59,202.52,202.43,24.7079]
[1755965181238,121.8,202.51,202.44,4.70479054]
[1755965181439,121.8,202.51,202.46,4.9406]
[1755965181639,2.59,202.48,202.47,4.70479054]
[1755965182236,2.59,202.48,202.46,4.9406]
[1755965182631,2.59,202.5,202.46,4.9406]
[1755965182832,2.59,202.49,202.46,4.9406]
[1755965183036,121.8,202.51,202.46,4.9406]
[1755965183240,2.59,202.47,202.46,4.9406]
[1755965183436,2.59,202.47,202.44,4.9413]
[1755965183637,124.37,202.46,202.39,2.6]
[1755965184940,2.59,202.45,202.42,4.9417]
[1755965185138,121.78,202.46,202.42,4.9417]
[1755965185440,2.59,202.44,202.42,4.9417]
[1755965186337,124.37,202.44,202.42,4.9417]
[1755965186537,121.76,202.46,202.44,4.9412]
[1755965186937,124.35,202.46,202.44,4.9412]
[1755965187143,2.85971565,202.51,202.48,4.9403]
[1755965187336,2.59,202.52,202.48,4.9403]
[1755965187542,121.8,202.5,202.48,4.9403]
[1755965187738,2.59,202.49,202.44,2.6]
[1755965187939,121.88,202.5,202.44,2.6]
[1755965188542,2.59,202.49,202.48,4.9402]
[1755965191348,2.59,202.49,202.41,24.7101]
[1755965191544,7.99548757,202.47,202.39,24.7128]
[1755965191841,2.59,202.46,202.37,2.6]
[1755965192047,122.0,202.45,202.41,4.9419]
[1755965192252,2.59,202.43,202.41,4.9419]
[1755965194253,122.0,202.45,202.41,4.9419]
[1755965194451,121.96,202.44,202.41,4.9419]
[1755965194853,124.67,202.44,202.41,4.9419]
[1755965195550,2.71,202.44,202.41,4.9419]
[1755965195750,124.65,202.44,202.41,4.9419]
[1755965196052,2.71,202.42,202.39,4.9425]
[1755965196350,2.71,202.43,202.39,4.9425]
[1755965196550,121.94,202.44,202.39,4.9425]
[1755965196852,2.71,202.4,202.39,4.9425]
[1755965197652,2.71,202.39,202.37,4.943]
[1755965198053,2.71,202.39,202.33,2.74]
[1755965198255,10.70548757,202.43,202.33,2.74]
[1755965198551,121.94,202.42,202.33,2.74]
[1755965198949,2.71,202.47,202.36,2.74]
[1755965199142,124.65,202.47,202.36,2.74]
[1755965199545,121.94,202.47,202.45,4.9409]
[1755965200254,15.64518757,202.51,202.45,4.9409]
[1755965200453,122.2,202.5,202.44,2.74]
[1755965200650,7.99548757,202.51,202.44,2.74]
[1755965200853,122.22,202.51,202.44,2.74]
[1755965201043,122.22,202.51,202.49,4.94]
[1755965201243,122.22,202.51,202.5,2.74]
[1755965201455,332.04,202.54,202.46,24.7042]
[1755965201653,332.04,202.54,202.52,4.9392]
[1755965201654,454.3,202.54,202.52,4.9392]
[1755965201853,7.99548757,202.58,202.46,24.7042]
[1755965201854,7.99548757,202.58,202.46,2.74]
[1755965202054,122.28,202.57,202.47,29.06138553]
[1755965202256,122.28,202.57,202.48,2.74]
[1755965202456,122.28,202.57,202.53,4.9389]
[1755965202649,122.28,202.57,202.49,24.7005]
[1755965202855,122.28,202.57,202.5,2.74]
[1755965204655,122.28,202.57,202.54,4.9387]
[1755965204855,124.99,202.57,202.54,4.9387]
[1755965205756,122.28,202.57,202.55,4.9384]
[1755965205957,122.28,202.57,202.55,7.6784]
[1755965207855,122.16,202.59,202.56,4.9381]
[1755965208157,124.87,202.59,202.56,4.9381]
[1755965208763,2.71,202.59,202.56,4.9381]
[1755965209060,124.81,202.59,202.57,4.9379]
[1755965211260,122.1,202.59,202.57,4.9379]
[1755965211455,122.1,202.59,202.57,7.6779]
[1755965211962,122.1,202.59,202.57,4.9379]
[1755965213855,124.81,202.59,202.57,4.9379]
[1755965217859,124.81,202.59,202.58,4.82954826]
[1755965219460,122.1,202.59,202.58,7.56954826]
[1755965219672,121.84,202.62,202.58,7.56954826]
[1755965219874,121.84,202.62,202.59,7.56954826]
[1755965220160,2.71,202.64,202.6,4.82954826]
[1755965220366,124.59,202.64,202.61,7.56954826]
[1755965220663,124.59,202.64,202.63,4.9365]
[1755965221064,121.88,202.64,202.63,9.76399001]
[1755965221771,2.71,202.68,202.67,4.9357]
[1755965221963,124.61,202.68,202.67,4.9357]
[1755965223764,2.71,202.68,202.67,4.9357]
[1755965224072,124.57,202.68,202.67,4.9357]
[1755965228377,124.47,202.68,202.67,4.9357]
[1755965228776,7.99548757,202.71,202.7,4.935]
[1755965228973,2.6,202.71,202.7,4.935]
[1755965229279,334.6,202.76,202.7,2.66]
[1755965229477,2.6,202.74,202.73,4.9342]
[1755965229775,2.6,202.74,202.73,9.74413585]
[1755965229976,2.6,202.74,202.73,4.9342]
[1755965230179,2.6,202.74,202.73,9.74380466]
[1755965230471,124.4,202.75,202.73,9.73873205]
[1755965230677,124.4,202.75,202.74,4.80453205]
[1755965233979,121.8,202.75,202.74,4.80453205]
[1755965236090,121.66,202.76,202.75,4.9337]
[1755965236281,124.26,202.76,202.75,9.73823205]
[1755965238477,121.66,202.76,202.75,9.73823205]
[1755965238682,2.6,202.78,202.77,4.9332]
[1755965238880,124.26,202.78,202.77,9.73773205]
[1755965239682,124.26,202.78,202.77,9.71679137]
[1755965239884,104.8101,202.78,202.77,9.71679137]
[1755965240083,124.24,202.81,202.8,4.9325]
[1755965240286,124.24,202.81,202.8,9.71609137]
[1755965241184,2.6,202.84,202.82,4.9319]
[1755965241382,2.6,202.84,202.83,4.78359137]
[1755965241577,2.6,202.83,202.74,2.66]
[1755965241788,2.6,202.83,202.8,4.9324]
[1755965241982,2.6,202.82,202.81,4.71305344]
[1755965243586,124.22,202.83,202.82,4.932]
[1755965244093,2.6,202.83,202.82,4.932]
[1755965244285,121.62,202.83,202.82,4.932]
[1755965244680,124.22,202.83,202.82,4.932]
[1755965252892,2.6,202.83,202.82,4.932]
[1755965253094,124.18,202.83,202.82,4.932]
[1755965253692,124.18,202.83,202.82,9.60094784]
[1755965254687,116.6016,202.83,202.82,9.60094784]
[1755965254887,109.0232,202.83,202.82,9.60094784]
[1755965255088,109.0232,202.83,202.82,12.25094784]
[1755965255292,109.0232,202.83,202.82,9.60094784]
[1755965255492,7.99548757,202.89,202.86,4.9309]
[1755965255788,121.58,202.88,202.87,4.66894784]
[1755965256186,121.58,202.88,202.87,9.59954784]
[1755965259193,121.58,202.88,202.87,4.9306]
[1755965259391,123.9,202.9,202.89,4.9303]
[1755965259592,123.9,202.9,202.89,9.60315963]
[1755965259886,7.99548757,203.04,202.91,4.9299]
[1755965259887,2.34,202.92,202.91,4.9299]
[1755965260092,2.34,202.92,202.91,4.67200898]
[1755965265197,123.88,202.93,202.91,4.67200898]
[1755965265398,123.88,202.93,202.92,4.67200898]
[1755965266497,2.34,202.93,202.92,4.67200898]
[1755965269097,2.34,202.93,202.92,4.67551614]
[1755965269800,2.34,202.93,202.92,9.64403175]
[1755965271502,2.34,202.93,202.78,34.5301]
[1755965271503,10.33548757,202.93,202.78,34.5301]
[1755965271815,2.34,202.92,202.82,9.60026258]
[1755965272099,2.34,202.92,202.83,2.65]
[1755965272695,2.34,202.92,202.87,4.9307]
[1755965272896,2.34,202.92,202.83,2.65]
[1755965273097,7.99548757,202.89,202.83,4.9318]
[1755965273400,2.34,202.85,202.83,4.9318]
[1755965274900,2.34,202.85,202.81,4.9322]
[1755965275101,2.34,202.85,202.82,2.65]
[1755965275698,2.34,202.84,202.81,4.9322]
[1755965275901,7.99548757,202.92,202.8,2.65]
[1755965276099,2.34,202.9,202.8,2.65]
[1755965276702,2.34,202.89,202.8,2.65]
[1755965278503,2.34,202.9,202.84,4.9315]
[1755965278695,2.34,202.9,202.8,2.65]
[1755965279608,2.34,202.9,202.82,4.9319]
[1755965280214,2.34,202.9,202.83,4.9317]
[1755965280707,2.34,202.9,202.8,2.65]
[1755965280708,10.33548757,202.9,202.8,2.65]
[1755965281209,2.34,202.89,202.8,2.65]
[1755965281409,7.99548757,202.86,202.77,2.65]
[1755965281609,123.84,202.85,202.77,2.65]
[1755965281811,123.84,202.85,202.78,4.9329]
[1755965282006,121.5,202.87,202.79,2.65]
[1755965282201,2.85781897,202.94,202.8,4.05933716]
[1755965282202,10.33548757,202.93,202.8,4.05933716]
[1755965282504,121.5,202.92,202.81,2.65]
[1755965282704,121.5,202.92,202.85,7.5812]
[1755965283507,2.34,202.91,202.86,9.36873899]
[1755965283709,7.99548757,202.93,202.87,9.36896298]
[1755965284010,121.5,202.93,202.91,2.68]
[1755965284201,121.5,202.95,202.91,7.6097]
[1755965284401,123.84,202.95,202.91,7.6097]
[1755965284604,121.5,202.95,202.92,4.8928183]
[1755965284806,4.9278,203.0,202.94,7.6091]
[1755965284807,121.5,203.0,202.94,7.6091]
[1755965285002,121.5,203.0,202.95,4.8928183]
[1755965285003,2.34,202.99,202.95,4.8928183]
[1755965285202,7.99548757,203.04,202.96,9.8213183]
[1755965285402,123.84,203.03,202.97,7.5728183]
[1755965285609,2.34,203.07,202.99,2.68]
[1755965285804,2.34,203.07,203.0,9.83605908]
[1755965285805,123.84,203.07,203.0,9.83605908]
[1755965286012,123.84,203.07,203.01,9.83605908]
[1755965286314,121.5,203.07,203.02,9.83605908]
[1755965286510,121.5,203.07,203.03,4.94324078]
[1755965286820,2.34,203.04,202.99,2.68]
[1755965287017,129.49548757,203.07,203.0,10.01666072]
[1755965287221,2.34,203.01,202.94,2.68]
[1755965287418,123.84,203.01,202.95,4.8533478]
[1755965287810,121.5,203.01,202.96,10.0159963]
[1755965288012,2.34,203.0,202.97,10.0159963]
[1755965288218,2.34,203.0,202.98,10.0159963]
[1755965288419,2.34,203.0,202.99,4.85328543]
[1755965289420,121.48,203.01,202.99,4.85328543]
[1755965289621,123.82,203.01,203.0,4.85328543]
[1755965289827,123.82,203.01,202.96,2.68]
[1755965290119,123.82,203.01,202.97,7.84087054]
[1755965290321,123.82,203.01,202.98,5.16087054]
[1755965290522,121.48,203.02,202.99,5.15982173]
[1755965290724,121.46,203.04,203.0,7.83982173]
[1755965290912,123.8,203.04,203.0,2.68]
[1755965292117,123.8,203.04,202.96,4.9284]
[1755965292118,2.34,203.03,202.96,4.9284]
[1755965292318,2.34,203.03,202.97,5.15682058]
[1755965292517,2.34,203.02,202.98,5.15682058]
[1755965292717,2.34,203.01,202.99,5.15682058]
[1755965292924,2.34,203.01,203.0,5.15682058]
[1755965293220,2.34,203.01,202.96,2.68]
[1755965293417,7.99548757,203.02,202.97,5.15635549]
[1755965293623,2.34,203.01,202.95,4.8533478]
[1755965293823,2.34,203.01,202.96,5.15694322]
[1755965294017,4.9279,203.0,202.95,4.8533478]
[1755965294223,2.34,202.98,202.95,4.8533478]
[1755965294422,121.46,202.97,202.95,4.8533478]
[1755965294623,2.34,202.96,202.95,4.8533478]
[1755965296527,2.34,202.96,202.88,2.68]
[1755965296828,2.34,202.96,202.89,5.16005057]
[1755965296829,4.9291,202.95,202.89,5.16005057]
[1755965297022,2.34,202.94,202.9,5.16005057]
[1755965297230,2.34,202.92,202.88,2.68]
[1755965297428,2.34,202.92,202.89,5.16157712]
[1755965297630,2.34,202.9,202.84,96.75010862]
[1755965297825,2.34,202.9,202.86,2.68]
[1755965298130,123.78,202.91,202.87,5.16202905]
[1755965298429,123.78,202.91,202.88,5.16202905]
[1755965298631,123.78,202.91,202.89,5.16202905]
[1755965298927,123.78,202.91,202.87,2.68]
[1755965299131,123.78,202.91,202.88,5.16282157]
[1755965299317,123.78,202.91,202.89,5.16282157]
[1755965299523,123.78,202.91,202.84,96.75010862]
[1755965299727,123.78,202.91,202.85,5.16419176]
[1755965299926,7.99548757,202.9,202.86,5.16419176]
[1755965300126,2.34,202.89,202.79,2.68]
[1755965300329,2.34,202.89,202.8,5.14694887]
[1755965300622,2.34,202.89,202.81,5.14694887]
[1755965300822,2.34,202.89,202.82,5.14694887]
[1755965301127,2.34,202.89,202.83,5.14694887]
[1755965301328,2.34,202.87,202.84,5.14694887]
[1755965301525,2.34,202.87,202.79,2.68]
[1755965301726,2.34,202.87,202.8,5.14757583]
[1755965302029,2.34,202.87,202.81,5.14757583]
[1755965302226,2.34,202.87,202.82,7.82757583]
[1755965302427,2.34,202.87,202.83,5.14757583]
[1755965302626,2.34,202.87,202.84,5.14757583]
[1755965302821,2.34,202.87,202.83,2.68]
[1755965303231,2.34,202.87,202.84,5.1473325]
[1755965303417,2.34,202.87,202.83,2.68]
[1755965303622,2.34,202.87,202.84,7.8268926]
[1755965303819,7.99548757,202.89,202.84,2.68]
[1755965304032,121.48,202.89,202.85,5.14682563]
[1755965304329,121.48,202.89,202.87,2.68]
[1755965304720,12.33548757,202.93,202.84,4.9314]
[1755965305029,12.33548757,202.93,202.79,24.6641]
[1755965305030,121.48,202.92,202.86,2.68]
[1755965305324,121.48,202.92,202.88,2.68]
[1755965305724,2.34,202.92,202.88,2.68]
[1755965305928,123.82,202.92,202.88,2.68]
[1755965306128,2.34,202.92,202.88,2.68]
[1755965306330,123.82,202.92,202.88,2.68]
[1755965306624,15.27388757,202.97,202.83,2.68]
[1755965306824,15.27388757,202.97,202.81,24.6616]
[1755965306825,121.48,202.96,202.85,2.68]
[1755965307024,121.48,202.96,202.86,5.14572286]
[1755965307224,121.48,202.96,202.87,5.14572286]
[1755965307423,126.4088,202.96,202.88,5.14572286]
[1755965307622,126.4088,202.96,202.86,4.9309]
[1755965307623,2.35,202.95,202.86,4.9309]
[1755965307827,2.35,202.95,202.87,7.82547754]
[1755965308029,2.35,202.95,202.88,5.14547754]
[1755965308226,2.35,202.95,202.87,2.68]
[1755965308429,2.35,202.95,202.88,5.14542479]
[1755965308723,2.35,202.95,202.87,2.68]
[1755965308923,4.9291,202.95,202.88,5.1454248]
[1755965309125,7.99548757,202.93,202.86,4.9309]
[1755965309423,7.99548757,202.93,202.87,5.14538792]
[1755965309622,2.35,202.92,202.88,5.14538792]
[1755965309827,2.35,202.92,202.86,4.9309]
[1755965310030,2.35,202.92,202.87,7.82538612]
[1755965310226,2.35,202.92,202.88,5.14538612]
[1755965310433,2.35,202.92,202.88,2.68]
[1755965310833,2.35,202.92,202.86,4.9309]
[1755965311134,2.35,202.91,202.87,5.14528752]
[1755965311323,12.92498757,202.93,202.84,7.6115]
[1755965311529,2.35,202.92,202.85,5.14536158]
[1755965311723,2.35,202.92,202.86,5.14536158]
[1755965311924,2.35,202.91,202.87,5.14536158]
[1755965312130,2.35,202.91,202.84,4.9315]
[1755965312427,2.35,202.91,202.85,5.14535353]
[1755965312628,2.35,202.9,202.86,7.82535353]
[1755965312825,2.35,202.9,202.87,5.14535353]
[1755965313028,2.35,202.9,202.86,2.68]
[1755965313240,2.35,202.9,202.87,5.14542066]
[1755965313433,2.35,202.9,202.84,4.9315]
[1755965313629,2.35,202.9,202.86,2.63]
[1755965313829,2.35,202.9,202.87,5.14531172]
[1755965314030,2.35,202.9,202.86,2.63]
[1755965314230,2.35,202.9,202.87,5.14497907]
[1755965314431,2.35,202.9,202.86,2.63]
[1755965314632,2.35,202.9,202.87,5.145144]
[1755965314938,2.35,202.9,202.86,2.63]
[1755965315737,4.9301,202.91,202.84,2.63]
[1755965315928,4.9301,202.91,202.85,5.14518442]
[1755965316132,2.35,202.9,202.82,4.932]
[1755965316332,121.48,202.89,202.83,5.14502802]
[1755965316538,121.48,202.89,202.84,5.14502802]
[1755965316735,2.35,202.88,202.84,7.77502802]
[1755965317039,2.35,202.88,202.85,5.14503106]
[1755965317229,2.35,202.88,202.84,2.63]
[1755965317433,2.35,202.88,202.85,5.14482868]
[1755965317635,2.35,202.88,202.84,2.63]
[1755965317834,2.35,202.88,202.85,5.14482792]
[1755965318034,2.35,202.88,202.85,2.63]
[1755965319442,2.35,202.88,202.83,4.9317]
[1755965319443,121.48,202.89,202.84,4.9314]
[1755965319641,121.48,202.89,202.86,2.63]
[1755965319835,121.48,202.89,202.87,5.14446339]
[1755965320140,121.48,202.89,202.86,2.63]
[1755965320633,15.27498757,202.93,202.87,5.14459785]
[1755965320634,2.35,202.88,202.87,5.14459785]
[1755965320841,121.48,202.89,202.84,4.9314]
[1755965321039,121.48,202.89,202.86,2.63]
[1755965321538,123.83,202.89,202.86,2.63]
[1755965323334,123.83,202.89,202.87,4.9307]
[1755965323335,121.48,202.89,202.87,4.9307]
[1755965323540,2.35,202.93,202.88,5.14459869]
[1755965323736,123.83,202.92,202.88,2.63]
[1755965324339,121.48,202.92,202.81,24.6613]
[1755965324638,2.35,202.91,202.87,7.5608]
[1755965324939,2.35,202.91,202.88,5.14495066]
[1755965325141,2.35,202.91,202.87,7.5608]
[1755965325341,2.35,202.91,202.88,5.14531809]
[1755965325540,2.35,202.91,202.87,7.5608]
[1755965325740,2.35,202.91,202.88,5.14538702]
[1755965325942,2.35,202.9,202.87,7.5608]
[1755965327540,2.35,202.9,202.85,4.9312]
[1755965327741,2.35,202.9,202.86,7.77648313]
[1755965327943,2.35,202.9,202.87,5.14648313]
[1755965328139,2.35,202.91,202.83,4.9317]
[1755965328442,2.35,202.91,202.84,5.14677779]
[1755965328642,2.35,202.91,202.85,5.14677779]
[1755965328841,134.40518757,202.92,202.86,5.14677779]
[1755965329042,2.35,202.89,202.82,2.63]
[1755965329345,2.35,202.89,202.83,5.14640974]
[1755965329548,134.40518757,202.92,202.84,10.07790974]
[1755965329838,134.40518757,202.92,202.85,5.14640974]
[1755965329839,2.35,202.88,202.85,5.14640974]
[1755965330039,2.35,202.88,202.86,5.14640974]
[1755965330235,129.47548757,202.92,202.84,2.63]
[1755965330441,2.35,202.91,202.85,5.15502919]
[1755965330640,2.35,202.91,202.84,2.63]
[1755965330838,2.35,202.91,202.85,5.15503099]
[1755965331043,2.35,202.91,202.84,2.63]
[1755965331338,2.35,202.91,202.85,5.15503099]
[1755965331537,4.9303,202.9,202.84,2.63]
[1755965331853,2.35,202.89,202.85,5.15703808]
[1755965332046,2.35,202.89,202.86,5.15703808]
[1755965332246,2.35,202.89,202.8,2.63]
[1755965332449,2.35,202.89,202.82,2.63]
[1755965332649,2.35,202.89,202.83,5.15770032]
[1755965332846,2.35,202.89,202.84,5.15770032]
[1755965333051,2.35,202.89,202.85,7.78770032]
[1755965333346,2.35,202.89,202.86,7.78770032]
[1755965333544,2.35,202.89,202.87,5.15879743]
[1755965333751,2.35,202.88,202.84,4.9314]
[1755965334048,2.35,202.88,202.85,7.7889357]
[1755965334242,2.35,202.88,202.86,5.1589357]
[1755965334439,2.35,202.88,202.85,2.63]
[1755965334641,2.35,202.88,202.86,5.16028589]
[1755965334846,2.35,202.88,202.85,2.63]
[1755965335050,2.35,202.88,202.86,5.16028589]
[1755965335345,2.35,202.88,202.87,5.16195139]
[1755965335551,2.35,202.88,202.82,4.932]
[1755965335849,2.35,202.91,202.83,7.79208976]
[1755965336044,2.35,202.91,202.84,5.16208976]
[1755965336245,2.35,202.89,202.85,2.63]
[1755965336444,2.35,202.89,202.86,5.16514036]
[1755965336648,2.35,202.89,202.87,5.16514036]
[1755965336848,2.35,202.88,202.85,2.63]
[1755965337051,2.35,202.88,202.86,5.16514036]
[1755965337349,2.35,202.88,202.87,5.16514036]
[1755965338547,10.34548757,202.88,202.81,7.5622]
[1755965338741,15.27618757,202.88,202.81,7.5622]
[1755965338946,10.34548757,202.88,202.81,2.63]
[1755965339146,121.48,202.87,202.81,2.63]
[1755965340647,121.48,202.87,202.84,4.9315]
[1755965340955,121.48,202.87,202.84,7.5615]
[1755965341449,121.48,202.87,202.85,4.9312]
[1755965341650,121.48,202.87,202.86,2.63]
[1755965342051,12.34548757,202.91,202.88,2.63]
[1755965342052,121.48,202.9,202.88,2.63]
[1755965342743,121.48,202.9,202.87,7.5607]
[1755965342946,121.48,202.9,202.88,4.54556896]
[1755965343149,121.48,202.9,202.87,7.5607]
[1755965343351,121.48,202.9,202.88,12.1062798]
[1755965343550,121.48,202.9,202.89,4.54537403]
[1755965343853,121.48,202.9,202.89,7.11537403]
[1755965344049,121.48,202.9,202.89,4.54537403]
[1755965344450,121.48,202.9,202.89,7.11537403]
[1755965344650,2.0,202.91,202.9,2.57]
[1755965344850,2.0,202.91,202.9,7.11537403]
[1755965345154,2.0,202.91,202.9,4.5450243]
[1755965345758,4.34,202.91,202.9,4.5450243]
[1755965346554,2.34,202.91,202.9,4.5450243]
[1755965348155,2.34,202.91,202.87,4.9308]
[1755965348348,2.34,202.91,202.88,7.11573611]
[1755965348548,2.34,202.91,202.89,4.54573611]
[1755965348749,2.34,202.91,202.9,4.54573611]
[1755965348953,121.48,202.92,202.9,4.54573611]
[1755965349256,123.82,202.92,202.88,2.57]
[1755965349456,123.82,202.92,202.89,4.54571927]
[1755965349654,123.82,202.92,202.9,4.54571927]
[1755965349856,123.82,202.92,202.88,2.57]
[1755965350061,123.82,202.92,202.89,4.54575305]
[1755965350260,123.82,202.92,202.88,4.9304]
[1755965350261,123.82,202.92,202.9,4.54575305]
[1755965350458,123.82,202.92,202.91,9.61919366]
[1755965350852,123.82,202.92,202.91,5.07344061]
[1755965351060,123.82,202.92,202.91,9.61866491]
[1755965351562,123.82,202.92,202.91,5.07344061]
[1755965351955,123.82,202.92,202.91,9.61830703]
[1755965352470,123.82,202.92,202.91,5.07344061]
[1755965355072,123.82,202.92,202.91,5.07330616]
[1755965355273,121.48,202.92,202.91,9.61865577]
[1755965355472,123.82,202.92,202.91,9.61865577]
[1755965355665,123.82,202.92,202.91,9.61866894]
[1755965356566,123.82,202.92,202.91,5.07330616]
[1755965356767,123.82,202.92,202.91,9.61848575]
[1755965356961,123.82,202.92,202.91,5.07330616]
[1755965363278,2.34,202.91,202.8,2.57]
[1755965363479,2.34,202.89,202.81,4.54535268]
[1755965363772,2.34,202.86,202.82,4.54535268]
[1755965363978,123.76,202.85,202.83,4.54535268]
[1755965364173,123.76,202.85,202.84,4.54535268]
[1755965364779,123.76,202.85,202.81,4.9322]
[1755965364980,123.76,202.85,202.82,4.54572885]
[1755965365180,123.76,202.85,202.83,4.54572885]
[1755965365381,123.76,202.85,202.81,2.57]
[1755965365580,123.76,202.85,202.82,4.54530225]
[1755965365781,2.34,202.84,202.83,4.54530225]
[1755965369778,121.42,202.85,202.83,4.54530225]
[1755965369974,121.42,202.85,202.84,4.54530225]
[1755965370383,123.77,202.85,202.84,4.54530225]
[1755965370685,2.35,202.85,202.84,4.54530225]
[1755965370882,123.77,202.85,202.84,4.54530225]
[1755965371283,121.42,202.85,202.84,4.59352067]
[1755965371484,123.77,202.85,202.84,4.59352067]
[1755965373789,123.77,202.85,202.8,7.5025]
[1755965373993,123.77,202.85,202.81,12.30455725]
[1755965374192,123.77,202.85,202.82,4.59235725]
[1755965374393,123.77,202.85,202.83,4.59235725]
[1755965374792,2.35,202.85,202.84,4.59146417]
[1755965375090,123.79,202.85,202.84,4.59146417]
[1755965375296,123.79,202.85,202.84,9.89453593]
[1755965375586,121.44,202.85,202.84,9.89453593]
[1755965375789,121.44,202.85,202.84,12.67453593]
[1755965384395,121.44,202.85,202.84,7.37070884]
[1755965384593,121.44,202.85,202.84,12.67389065]
[1755965386090,2.34,202.88,202.85,2.78]